[Event "January 2 Early 2024"]
[Site "https://www.chess.com"]
[Date "2024.01.02"]
[Round "1"]
[White "Hajiyev, Kanan"]
[Black "Bulatova, Kamaliya"]
[Result "0-1"]
[Board "199"]
[TimeControl "180+1"]
[WhiteFideId "13404148"]
[BlackFideId "34111546"]
[WhiteElo "2651"]
[BlackElo "2307"]
[WhiteTeam "AZE"]
[BlackTeam "RUS"]
[WhiteClock "0:01:15"]
[BlackClock "0:01:05"]

1. d4 {[%clk 0:03:00]}  Nf6 {[%clk 0:02:59]} 2. Nf3 {[%clk 0:03:01]}  g6 {[%clk 0:02:58]} 3. g3 {[%clk 0:03:00]}  Bg7 {[%clk 0:02:58]} 4. Bg2 {[%clk 0:03:01]}  O-O {[%clk 0:02:58]} 5. O-O {[%clk 0:03:02]}  d6 {[%clk 0:02:59]} 6. b3 {[%clk 0:03:03]}  c5 {[%clk 0:02:58]} 7. Bb2 {[%clk 0:03:04]}  cxd4 {[%clk 0:02:57]} 8. Nxd4 {[%clk 0:03:05]}  a5 {[%clk 0:02:56]} 9. a3 {[%clk 0:02:59]}  Na6 {[%clk 0:02:56]} 10. c4 {[%clk 0:02:58]}  Nc5 {[%clk 0:02:52]} 11. Nc3 {[%clk 0:02:59]}  Rb8 {[%clk 0:02:38]} 12. e4 {[%clk 0:02:55]}  Bg4 {[%clk 0:02:34]} 13. f3 {[%clk 0:02:54]}  Bd7 {[%clk 0:02:33]} 14. Kh1 {[%clk 0:02:54]}  Qc8 {[%clk 0:02:32]} 15. Re1 {[%clk 0:02:48]}  Bh6 {[%clk 0:02:18]} 16. Nd5 {[%clk 0:02:43]}  Nxd5 {[%clk 0:02:10]} 17. exd5 {[%clk 0:02:44]}  Re8 {[%clk 0:02:04]} 18. a4 {[%clk 0:02:21]}  Bg7 {[%clk 0:02:01]} 19. Qc2 {[%clk 0:02:21]}  Na6 {[%clk 0:01:59]} 20. Re2 {[%clk 0:02:18]}  Nb4 {[%clk 0:01:58]} 21. Qd2 {[%clk 0:02:18]}  Bf5 {[%clk 0:01:54]} 22. Nxf5 {[%clk 0:02:05]}  Qxf5 {[%clk 0:01:52]} 23. Bxg7 {[%clk 0:02:05]}  Kxg7 {[%clk 0:01:52]} 24. Rae1 {[%clk 0:02:03]}  Qf6 {[%clk 0:01:50]} 25. f4 {[%clk 0:02:02]}  b6 {[%clk 0:01:47]} 26. Bf3 {[%clk 0:02:01]}  Na6 {[%clk 0:01:41]} 27. Kg2 {[%clk 0:02:00]}  Nc5 {[%clk 0:01:41]} 28. Qe3 {[%clk 0:01:59]}  Rb7 {[%clk 0:01:41]} 29. Rd2 {[%clk 0:01:53]}  Rc7 {[%clk 0:01:35]} 30. h4 {[%clk 0:01:54]}  e5 {[%clk 0:01:24]} 31. Qc3 {[%clk 0:01:29]}  e4 {[%clk 0:01:16]} 32. Qc2 {[%clk 0:01:20]}  exf3+ {[%clk 0:01:14]} 33. Kf2 {[%clk 0:01:19]}  Rxe1 {[%clk 0:01:11]} 34. Kxe1 {[%clk 0:01:20]}  Re7+ {[%clk 0:01:07]} 35. Kf1 {[%clk 0:01:15]}  Ne4 {[%clk 0:01:05]} 0-1

[Event "January 2 Early 2024"]
[Site "https://www.chess.com"]
[Date "2024.01.02"]
[Round "1"]
[White "Ardila, Oscar Humberto"]
[Black "Cordoba Roa, Angel Gabriel"]
[Result "0-1"]
[Board "200"]
[TimeControl "180+1"]
[WhiteFideId "4404742"]
[BlackFideId "3957624"]
[WhiteElo "2307"]
[BlackElo "2651"]
[WhiteTeam "COL"]
[BlackTeam "COL"]
[WhiteClock "0:01:43"]
[BlackClock "0:01:29"]

1. a3 {[%clk 0:02:59]}  e5 {[%clk 0:02:59]} 2. h3 {[%clk 0:03:00]}  d5 {[%clk 0:02:59]} 3. d3 {[%clk 0:03:01]}  Nc6 {[%clk 0:02:59]} 4. Nd2 {[%clk 0:03:01]}  Nf6 {[%clk 0:02:59]} 5. Ngf3 {[%clk 0:03:01]}  e4 {[%clk 0:02:58]} 6. Ng1 {[%clk 0:03:00]}  Bc5 {[%clk 0:02:56]} 7. e3 {[%clk 0:03:01]}  O-O {[%clk 0:02:55]} 8. d4 {[%clk 0:03:01]}  Bd6 {[%clk 0:02:55]} 9. Ne2 {[%clk 0:03:00]}  Ne7 {[%clk 0:02:52]} 10. Nf4 {[%clk 0:03:00]}  Re8 {[%clk 0:02:49]} 11. c4 {[%clk 0:03:00]}  Bxf4 {[%clk 0:02:46]} 12. exf4 {[%clk 0:03:00]}  e3 {[%clk 0:02:46]} 13. fxe3 {[%clk 0:02:59]}  Nf5 {[%clk 0:02:46]} 14. Nf3 {[%clk 0:02:56]}  Nxe3 {[%clk 0:02:44]} 15. Bxe3 {[%clk 0:02:56]}  Rxe3+ {[%clk 0:02:45]} 16. Kf2 {[%clk 0:02:56]}  Re8 {[%clk 0:02:43]} 17. c5 {[%clk 0:02:46]}  Ne4+ {[%clk 0:02:40]} 18. Kg1 {[%clk 0:02:47]}  Qf6 {[%clk 0:02:39]} 19. Qc1 {[%clk 0:02:39]}  b6 {[%clk 0:02:25]} 20. Bd3 {[%clk 0:02:39]}  Ng3 {[%clk 0:02:19]} 21. Rh2 {[%clk 0:02:39]}  Bf5 {[%clk 0:02:20]} 22. Kf2 {[%clk 0:02:17]}  Bxd3 {[%clk 0:01:57]} 23. Kxg3 {[%clk 0:02:17]}  Qg6+ {[%clk 0:01:57]} 24. Kf2 {[%clk 0:02:18]}  Re2+ {[%clk 0:01:57]} 25. Kg1 {[%clk 0:02:16]}  Rae8 {[%clk 0:01:55]} 26. Ne5 {[%clk 0:02:14]}  Qe4 {[%clk 0:01:54]} 27. Qd1 {[%clk 0:02:05]}  Ba6 {[%clk 0:01:41]} 28. g3 {[%clk 0:02:02]}  f6 {[%clk 0:01:37]} 29. Rxe2 {[%clk 0:01:55]}  Bxe2 {[%clk 0:01:38]} 30. Qd2 {[%clk 0:01:53]}  fxe5 {[%clk 0:01:37]} 31. Re1 {[%clk 0:01:53]}  exd4 {[%clk 0:01:35]} 32. cxb6 {[%clk 0:01:53]}  axb6 {[%clk 0:01:35]} 33. b4 {[%clk 0:01:52]}  d3 {[%clk 0:01:33]} 34. a4 {[%clk 0:01:49]}  Qd4+ {[%clk 0:01:31]} 35. Kg2 {[%clk 0:01:47]}  Re3 {[%clk 0:01:31]} 36. a5 {[%clk 0:01:45]}  Qe4+ {[%clk 0:01:30]} 37. Kg1 {[%clk 0:01:43]}  Rxg3+ {[%clk 0:01:29]} 0-1

[Event "January 2 Early 2024"]
[Site "https://www.chess.com"]
[Date "2024.01.02"]
[Round "1"]
[White "Tanriverdi, Enes"]
[Black "Skaric, Djuro"]
[Result "1-0"]
[Board "201"]
[TimeControl "180+1"]
[WhiteFideId "34543279"]
[BlackFideId "934569"]
[WhiteElo "2651"]
[BlackElo "2307"]
[WhiteTeam "TUR"]
[BlackTeam "SRB"]
[WhiteClock "0:00:02"]
[BlackClock "0:00:00"]

1. e4 {[%clk 0:03:00]}  d6 {[%clk 0:02:58]} 2. Nf3 {[%clk 0:03:01]}  g6 {[%clk 0:02:57]} 3. d4 {[%clk 0:03:00]}  Bg7 {[%clk 0:02:55]} 4. Bc4 {[%clk 0:03:01]}  Nf6 {[%clk 0:02:55]} 5. Qe2 {[%clk 0:02:59]}  O-O {[%clk 0:02:55]} 6. O-O {[%clk 0:02:58]}  Nc6 {[%clk 0:02:54]} 7. e5 {[%clk 0:02:49]}  Nd7 {[%clk 0:02:46]} 8. e6 {[%clk 0:02:42]}  Nb6 {[%clk 0:02:46]} 9. exf7+ {[%clk 0:02:42]}  Kh8 {[%clk 0:02:46]} 10. Bb3 {[%clk 0:02:41]}  Bg4 {[%clk 0:02:45]} 11. c3 {[%clk 0:02:39]}  e5 {[%clk 0:02:45]} 12. Nbd2 {[%clk 0:02:23]}  exd4 {[%clk 0:02:42]} 13. h3 {[%clk 0:02:23]}  dxc3 {[%clk 0:02:29]} 14. hxg4 {[%clk 0:02:20]}  cxb2 {[%clk 0:02:26]} 15. Bxb2 {[%clk 0:02:12]}  Bxb2 {[%clk 0:02:26]} 16. Ne4 {[%clk 0:02:12]}  Bg7 {[%clk 0:02:20]} 17. Rae1 {[%clk 0:01:58]}  Ne5 {[%clk 0:02:15]} 18. Nxe5 {[%clk 0:01:52]}  dxe5 {[%clk 0:02:15]} 19. g3 {[%clk 0:01:50]}  Qe7 {[%clk 0:02:04]} 20. Kg2 {[%clk 0:01:48]}  c6 {[%clk 0:02:05]} 21. Rh1 {[%clk 0:01:43]}  Bf6 {[%clk 0:01:50]} 22. Qe3 {[%clk 0:01:30]}  Rxf7 {[%clk 0:01:42]} 23. Bxf7 {[%clk 0:01:27]}  Qxf7 {[%clk 0:01:41]} 24. Rh2 {[%clk 0:01:02]}  Nd5 {[%clk 0:01:29]} 25. Qh6 {[%clk 0:01:01]}  Kg8 {[%clk 0:01:18]} 26. Reh1 {[%clk 0:00:57]}  Rf8 {[%clk 0:00:58]} 27. Qxh7+ {[%clk 0:00:47]}  Qxh7 {[%clk 0:00:57]} 28. Rxh7 {[%clk 0:00:48]}  Bg7 {[%clk 0:00:57]} 29. Ng5 {[%clk 0:00:44]}  Rf6 {[%clk 0:00:57]} 30. Ne4 {[%clk 0:00:36]}  Rf7 {[%clk 0:00:52]} 31. Nc5 {[%clk 0:00:28]}  Re7 {[%clk 0:00:50]} 32. Ne4 {[%clk 0:00:25]}  a5 {[%clk 0:00:45]} 33. g5 {[%clk 0:00:25]}  Rf7 {[%clk 0:00:39]} 34. R7h4 {[%clk 0:00:23]}  Rf5 {[%clk 0:00:33]} 35. Nd6 {[%clk 0:00:23]}  Rxg5 {[%clk 0:00:30]} 36. Nxb7 {[%clk 0:00:23]}  Nf4+ {[%clk 0:00:27]} 37. Kf1 {[%clk 0:00:22]}  Nh5 {[%clk 0:00:27]} 38. Nxa5 {[%clk 0:00:17]}  e4 {[%clk 0:00:28]} 39. Nxc6 {[%clk 0:00:17]}  e3 {[%clk 0:00:27]} 40. Rg1 {[%clk 0:00:04]}  exf2 {[%clk 0:00:26]} 41. Kxf2 {[%clk 0:00:05]}  Rc5 {[%clk 0:00:25]} 42. Nd4 {[%clk 0:00:05]}  Ra5 {[%clk 0:00:21]} 43. Kf3 {[%clk 0:00:05]}  Rxa2 {[%clk 0:00:21]} 44. Rg4 {[%clk 0:00:06]}  Kf7 {[%clk 0:00:20]} 45. Ne2 {[%clk 0:00:06]}  Ra3+ {[%clk 0:00:19]} 46. Kf2 {[%clk 0:00:07]}  Nf6 {[%clk 0:00:19]} 47. Rc4 {[%clk 0:00:07]}  Nd5 {[%clk 0:00:17]} 48. Rd1 {[%clk 0:00:08]}  Ne7 {[%clk 0:00:16]} 49. Rc7 {[%clk 0:00:08]}  Bf6 {[%clk 0:00:17]} 50. Nf4 {[%clk 0:00:08]}  Ke8 {[%clk 0:00:13]} 51. Ne6 {[%clk 0:00:06]}  Ra2+ {[%clk 0:00:11]} 52. Kf1 {[%clk 0:00:06]}  Be5 {[%clk 0:00:11]} 53. Nf4 {[%clk 0:00:06]}  g5 {[%clk 0:00:11]} 54. Rc5 {[%clk 0:00:04]}  Bf6 {[%clk 0:00:07]} 55. Nh5 {[%clk 0:00:04]}  Bb2 {[%clk 0:00:06]} 56. Rxg5 {[%clk 0:00:03]}  Ra3 {[%clk 0:00:05]} 57. Re1 {[%clk 0:00:03]}  Kf7 {[%clk 0:00:03]} 58. Re2 {[%clk 0:00:03]}  Ra1+ {[%clk 0:00:02]} 59. Kg2 {[%clk 0:00:03]}  Bd4 {[%clk 0:00:03]} 60. Rg4 {[%clk 0:00:03]}  Ra4 {[%clk 0:00:01]} 61. Ree4 {[%clk 0:00:02]}  Ra1 {[%clk 0:00:00]} 62. Rxd4 {[%clk 0:00:02]} 1-0

[Event "January 2 Early 2024"]
[Site "https://www.chess.com"]
[Date "2024.01.02"]
[Round "1"]
[White "Eggleston, Thomas A"]
[Black "Jakubowski, Krzysztof"]
[Result "0-1"]
[Board "202"]
[TimeControl "180+1"]
[WhiteFideId "412139"]
[BlackFideId "1112848"]
[WhiteElo "2305"]
[BlackElo "2650"]
[WhiteTeam "ENG"]
[BlackTeam "POL"]
[WhiteClock "0:00:00"]
[BlackClock "0:00:47"]

1. e4 {[%clk 0:03:00]}  c6 {[%clk 0:02:56]} 2. d4 {[%clk 0:02:58]}  d5 {[%clk 0:02:56]} 3. e5 {[%clk 0:02:58]}  Bf5 {[%clk 0:02:55]} 4. Nd2 {[%clk 0:02:38]}  a5 {[%clk 0:02:53]} 5. c4 {[%clk 0:02:31]}  e6 {[%clk 0:02:49]} 6. Ngf3 {[%clk 0:02:30]}  Nd7 {[%clk 0:02:44]} 7. a4 {[%clk 0:02:21]}  Bb4 {[%clk 0:02:39]} 8. Be2 {[%clk 0:02:17]}  dxc4 {[%clk 0:02:35]} 9. Bxc4 {[%clk 0:02:17]}  Nb6 {[%clk 0:02:35]} 10. Bb3 {[%clk 0:02:12]}  Ne7 {[%clk 0:02:34]} 11. O-O {[%clk 0:02:11]}  O-O {[%clk 0:02:33]} 12. Qe2 {[%clk 0:02:05]}  h6 {[%clk 0:02:32]} 13. h3 {[%clk 0:02:02]}  Rc8 {[%clk 0:02:16]} 14. Ne4 {[%clk 0:02:02]}  Bxe4 {[%clk 0:02:16]} 15. Qxe4 {[%clk 0:02:02]}  Nbd5 {[%clk 0:02:15]} 16. Bc2 {[%clk 0:01:53]}  Ng6 {[%clk 0:02:14]} 17. h4 {[%clk 0:01:50]}  Re8 {[%clk 0:02:14]} 18. h5 {[%clk 0:01:45]}  Nf8 {[%clk 0:02:15]} 19. Rd1 {[%clk 0:01:43]}  c5 {[%clk 0:02:14]} 20. Be3 {[%clk 0:01:41]}  Qb6 {[%clk 0:02:11]} 21. dxc5 {[%clk 0:01:20]}  Bxc5 {[%clk 0:02:10]} 22. Bxc5 {[%clk 0:01:18]}  Rxc5 {[%clk 0:02:10]} 23. Nd4 {[%clk 0:01:15]}  Rec8 {[%clk 0:02:09]} 24. Bd3 {[%clk 0:01:06]}  Nb4 {[%clk 0:01:59]} 25. Bb5 {[%clk 0:01:03]}  Rd5 {[%clk 0:01:52]} 26. Ne2 {[%clk 0:00:50]}  Rc2 {[%clk 0:01:48]} 27. b3 {[%clk 0:00:45]}  Qc5 {[%clk 0:01:39]} 28. Rxd5 {[%clk 0:00:43]}  exd5 {[%clk 0:01:40]} 29. Qf3 {[%clk 0:00:37]}  Ne6 {[%clk 0:01:37]} 30. Rd1 {[%clk 0:00:31]}  d4 {[%clk 0:01:32]} 31. Bd3 {[%clk 0:00:19]}  Nxd3 {[%clk 0:01:30]} 32. Qxd3 {[%clk 0:00:19]}  Ra2 {[%clk 0:01:07]} 33. f4 {[%clk 0:00:18]}  b6 {[%clk 0:01:03]} 34. f5 {[%clk 0:00:17]}  Rxe2 {[%clk 0:00:54]} 35. fxe6 {[%clk 0:00:15]}  Rxe5 {[%clk 0:00:48]} 36. exf7+ {[%clk 0:00:11]}  Kxf7 {[%clk 0:00:49]} 37. Qg6+ {[%clk 0:00:10]}  Kg8 {[%clk 0:00:47]} 38. Rf1 {[%clk 0:00:05]}  d3+ {[%clk 0:00:47]} 39. Kh1 {[%clk 0:00:00]}  Rxh5+ {[%clk 0:00:47]} 0-1

[Event "January 2 Early 2024"]
[Site "https://www.chess.com"]
[Date "2024.01.02"]
[Round "1"]
[White "Gontcharov, Vladislav"]
[Black "Peiris, T G M"]
[Result "1-0"]
[Board "203"]
[TimeControl "180+1"]
[WhiteFideId "4123492"]
[BlackFideId "9901310"]
[WhiteElo "2649"]
[BlackElo "2303"]
[WhiteTeam "RUS"]
[BlackTeam "SRI"]
[WhiteClock "0:00:18"]
[BlackClock "0:00:00"]

1. e4 {[%clk 0:02:55]}  e6 {[%clk 0:03:00]} 2. d4 {[%clk 0:02:55]}  d5 {[%clk 0:03:00]} 3. Nc3 {[%clk 0:02:53]}  a6 {[%clk 0:02:59]} 4. Nf3 {[%clk 0:02:40]}  Nf6 {[%clk 0:02:59]} 5. e5 {[%clk 0:02:37]}  Nfd7 {[%clk 0:02:58]} 6. Ne2 {[%clk 0:02:27]}  c5 {[%clk 0:02:58]} 7. c3 {[%clk 0:02:27]}  Nc6 {[%clk 0:02:57]} 8. a3 {[%clk 0:02:22]}  cxd4 {[%clk 0:02:52]} 9. cxd4 {[%clk 0:02:21]}  f6 {[%clk 0:02:51]} 10. exf6 {[%clk 0:02:18]}  Nxf6 {[%clk 0:02:39]} 11. Ng3 {[%clk 0:01:46]}  Bd6 {[%clk 0:02:28]} 12. Bd3 {[%clk 0:01:44]}  O-O {[%clk 0:02:27]} 13. O-O {[%clk 0:01:44]}  e5 {[%clk 0:02:06]} 14. dxe5 {[%clk 0:01:41]}  Nxe5 {[%clk 0:02:06]} 15. Nxe5 {[%clk 0:01:41]}  Bxe5 {[%clk 0:02:07]} 16. Re1 {[%clk 0:01:40]}  Bd6 {[%clk 0:01:25]} 17. Bg5 {[%clk 0:01:22]}  Qb6 {[%clk 0:01:25]} 18. Be3 {[%clk 0:01:12]}  Bc5 {[%clk 0:01:07]} 19. Bxc5 {[%clk 0:01:08]}  Qxc5 {[%clk 0:01:08]} 20. b4 {[%clk 0:01:07]}  Qb6 {[%clk 0:00:55]} 21. h3 {[%clk 0:00:57]}  Ne4 {[%clk 0:00:22]} 22. Bxe4 {[%clk 0:00:24]}  Qxf2+ {[%clk 0:00:22]} 23. Kh2 {[%clk 0:00:24]}  dxe4 {[%clk 0:00:23]} 24. Qd5+ {[%clk 0:00:22]}  Kh8 {[%clk 0:00:22]} 25. Rf1 {[%clk 0:00:21]}  e3 {[%clk 0:00:07]} 26. Rxf2 {[%clk 0:00:20]}  exf2 {[%clk 0:00:00]} 27. Rf1 {[%clk 0:00:18]} 1-0

[Event "January 2 Early 2024"]
[Site "https://www.chess.com"]
[Date "2024.01.02"]
[Round "1"]
[White "Martin, Lewis"]
[Black "Domingo Nunez, Alejandro"]
[Result "0-1"]
[Board "206"]
[TimeControl "180+1"]
[WhiteFideId "410551"]
[BlackFideId "22245561"]
[WhiteElo "2297"]
[BlackElo "2645"]
[WhiteTeam "ENG"]
[BlackTeam "ESP"]
[WhiteClock "0:00:01"]
[BlackClock "0:00:06"]

1. c4 {[%clk 0:03:00]}  g6 {[%clk 0:02:58]} 2. g3 {[%clk 0:03:00]}  Bg7 {[%clk 0:02:59]} 3. Bg2 {[%clk 0:03:00]}  Nf6 {[%clk 0:02:59]} 4. Nf3 {[%clk 0:02:59]}  O-O {[%clk 0:02:59]} 5. Nc3 {[%clk 0:02:56]}  d6 {[%clk 0:03:00]} 6. O-O {[%clk 0:02:55]}  Nbd7 {[%clk 0:03:00]} 7. e4 {[%clk 0:02:55]}  c5 {[%clk 0:03:00]} 8. d3 {[%clk 0:02:53]}  Rb8 {[%clk 0:03:01]} 9. a3 {[%clk 0:02:52]}  a6 {[%clk 0:03:00]} 10. Rb1 {[%clk 0:02:48]}  Ne8 {[%clk 0:02:58]} 11. Bd2 {[%clk 0:02:46]}  Nc7 {[%clk 0:02:58]} 12. b4 {[%clk 0:02:46]}  b6 {[%clk 0:02:51]} 13. Qe2 {[%clk 0:02:42]}  Bb7 {[%clk 0:02:48]} 14. Rfc1 {[%clk 0:02:38]}  Ne6 {[%clk 0:02:48]} 15. Nd5 {[%clk 0:02:33]}  Ba8 {[%clk 0:02:42]} 16. bxc5 {[%clk 0:02:32]}  bxc5 {[%clk 0:02:42]} 17. Rxb8 {[%clk 0:02:27]}  Nxb8 {[%clk 0:02:43]} 18. Bc3 {[%clk 0:02:22]}  Nc6 {[%clk 0:02:41]} 19. Bxg7 {[%clk 0:02:21]}  Kxg7 {[%clk 0:02:42]} 20. Qb2+ {[%clk 0:02:19]}  Ned4 {[%clk 0:02:41]} 21. Rb1 {[%clk 0:02:15]}  e5 {[%clk 0:02:20]} 22. Nxd4 {[%clk 0:02:13]}  Nxd4 {[%clk 0:02:18]} 23. Qb6 {[%clk 0:02:09]}  Bxd5 {[%clk 0:02:08]} 24. exd5 {[%clk 0:02:03]}  a5 {[%clk 0:02:02]} 25. Qxd8 {[%clk 0:01:58]}  Rxd8 {[%clk 0:02:03]} 26. Rb7 {[%clk 0:01:50]}  Nc2 {[%clk 0:01:59]} 27. Ra7 {[%clk 0:01:42]}  Nxa3 {[%clk 0:01:57]} 28. Rxa5 {[%clk 0:01:42]}  Nc2 {[%clk 0:01:57]} 29. Ra7 {[%clk 0:01:39]}  Rb8 {[%clk 0:01:50]} 30. Be4 {[%clk 0:01:35]}  Rb6 {[%clk 0:01:24]} 31. g4 {[%clk 0:01:30]}  h6 {[%clk 0:01:17]} 32. h4 {[%clk 0:01:28]}  Nd4 {[%clk 0:01:10]} 33. g5 {[%clk 0:01:21]}  h5 {[%clk 0:01:05]} 34. Kg2 {[%clk 0:01:20]}  Ne2 {[%clk 0:01:02]} 35. Kf3 {[%clk 0:01:09]}  Nf4 {[%clk 0:00:56]} 36. Rd7 {[%clk 0:01:08]}  Kf8 {[%clk 0:00:52]} 37. Ke3 {[%clk 0:01:02]}  Ke8 {[%clk 0:00:51]} 38. Ra7 {[%clk 0:01:01]}  Rb8 {[%clk 0:00:36]} 39. Ra6 {[%clk 0:00:45]}  Rd8 {[%clk 0:00:35]} 40. Ra7 {[%clk 0:00:43]}  Rd7 {[%clk 0:00:35]} 41. Ra8+ {[%clk 0:00:43]}  Ke7 {[%clk 0:00:34]} 42. Bf3 {[%clk 0:00:40]}  f6 {[%clk 0:00:22]} 43. gxf6+ {[%clk 0:00:37]}  Kxf6 {[%clk 0:00:23]} 44. Be4 {[%clk 0:00:36]}  g5 {[%clk 0:00:17]} 45. hxg5+ {[%clk 0:00:32]}  Kxg5 {[%clk 0:00:18]} 46. Rg8+ {[%clk 0:00:29]}  Kf6 {[%clk 0:00:18]} 47. Rh8 {[%clk 0:00:26]}  Rg7 {[%clk 0:00:12]} 48. Bf3 {[%clk 0:00:19]}  Kg5 {[%clk 0:00:11]} 49. Rd8 {[%clk 0:00:17]}  Rg6 {[%clk 0:00:11]} 50. Rh8 {[%clk 0:00:17]}  Rh6 {[%clk 0:00:08]} 51. Rg8+ {[%clk 0:00:16]}  Rg6 {[%clk 0:00:08]} 52. Rh8 {[%clk 0:00:16]}  h4 {[%clk 0:00:08]} 53. Rh7 {[%clk 0:00:15]}  h3 {[%clk 0:00:07]} 54. Be4 {[%clk 0:00:15]}  Rh6 {[%clk 0:00:07]} 55. Rg7+ {[%clk 0:00:15]}  Kf6 {[%clk 0:00:05]} 56. Rg1 {[%clk 0:00:14]}  h2 {[%clk 0:00:05]} 57. Rh1 {[%clk 0:00:14]}  Rh3+ {[%clk 0:00:06]} 58. Kd2 {[%clk 0:00:12]}  Kg5 {[%clk 0:00:06]} 59. Ke1 {[%clk 0:00:11]}  Kg4 {[%clk 0:00:06]} 60. Kf1 {[%clk 0:00:11]}  Nxd3 {[%clk 0:00:05]} 61. f3+ {[%clk 0:00:03]}  Kg3 {[%clk 0:00:01]} 62. Bxd3 {[%clk 0:00:03]}  Kxf3 {[%clk 0:00:01]} 63. Be2+ {[%clk 0:00:03]}  Kg3 {[%clk 0:00:02]} 64. Bd3 {[%clk 0:00:03]}  Rh4 {[%clk 0:00:02]} 65. Bf5 {[%clk 0:00:03]}  Rf4+ {[%clk 0:00:03]} 66. Ke2 {[%clk 0:00:03]}  Rxf5 {[%clk 0:00:04]} 67. Ke3 {[%clk 0:00:03]}  Kg2 {[%clk 0:00:04]} 68. Rxh2+ {[%clk 0:00:02]}  Kxh2 {[%clk 0:00:05]} 69. Ke4 {[%clk 0:00:01]}  Rf4+ {[%clk 0:00:06]} 0-1

[Event "January 2 Early 2024"]
[Site "https://www.chess.com"]
[Date "2024.01.02"]
[Round "1"]
[White "Blokhin, Sofia"]
[Black "Volkov, Maksim"]
[Result "0-1"]
[Board "208"]
[TimeControl "180+1"]
[WhiteFideId "4508190"]
[BlackFideId "54123070"]
[WhiteElo "2293"]
[BlackElo "2644"]
[WhiteTeam "EST"]
[BlackTeam "RUS"]
[WhiteClock "0:00:05"]
[BlackClock "0:00:59"]

1. d4 {[%clk 0:03:00]}  d5 {[%clk 0:02:59]} 2. c4 {[%clk 0:03:00]}  e6 {[%clk 0:02:59]} 3. Nc3 {[%clk 0:03:00]}  c6 {[%clk 0:02:59]} 4. e3 {[%clk 0:02:58]}  Nf6 {[%clk 0:02:58]} 5. Nf3 {[%clk 0:02:58]}  Nbd7 {[%clk 0:02:58]} 6. Bd3 {[%clk 0:02:58]}  dxc4 {[%clk 0:02:58]} 7. Bxc4 {[%clk 0:02:57]}  b5 {[%clk 0:02:59]} 8. Bd3 {[%clk 0:02:56]}  Bd6 {[%clk 0:02:59]} 9. O-O {[%clk 0:02:55]}  O-O {[%clk 0:03:00]} 10. e4 {[%clk 0:02:54]}  e5 {[%clk 0:03:00]} 11. Bg5 {[%clk 0:02:39]}  h6 {[%clk 0:02:36]} 12. Bh4 {[%clk 0:02:24]}  Re8 {[%clk 0:02:36]} 13. d5 {[%clk 0:02:20]}  cxd5 {[%clk 0:02:30]} 14. Nxd5 {[%clk 0:02:18]}  a6 {[%clk 0:02:23]} 15. Bc2 {[%clk 0:01:45]}  Bb7 {[%clk 0:02:20]} 16. Ne3 {[%clk 0:01:40]}  Bf8 {[%clk 0:02:07]} 17. Nf5 {[%clk 0:01:37]}  g6 {[%clk 0:01:44]} 18. Ne3 {[%clk 0:01:33]}  Qb6 {[%clk 0:01:31]} 19. Qe2 {[%clk 0:01:10]}  Nxe4 {[%clk 0:01:26]} 20. Rfd1 {[%clk 0:01:06]}  Nd6 {[%clk 0:01:18]} 21. Rac1 {[%clk 0:00:59]}  Rac8 {[%clk 0:01:17]} 22. Ng4 {[%clk 0:00:58]}  Rc4 {[%clk 0:01:09]} 23. h3 {[%clk 0:00:50]}  h5 {[%clk 0:01:06]} 24. Ngxe5 {[%clk 0:00:31]}  Nxe5 {[%clk 0:01:02]} 25. Nxe5 {[%clk 0:00:30]}  Rxh4 {[%clk 0:01:01]} 26. g3 {[%clk 0:00:05]}  Rxh3 {[%clk 0:00:59]} 0-1

[Event "January 2 Early 2024"]
[Site "https://www.chess.com"]
[Date "2024.01.02"]
[Round "1"]
[White "Ivanova, Karina"]
[Black "Kuzhylnyi, Oleksandr"]
[Result "0-1"]
[Board "210"]
[TimeControl "180+1"]
[WhiteFideId "24139750"]
[BlackFideId "34110500"]
[WhiteElo "2291"]
[BlackElo "2637"]
[WhiteTeam "RUS"]
[BlackTeam "UKR"]
[WhiteClock "0:00:07"]
[BlackClock "0:00:14"]

1. d4 {[%clk 0:02:59]}  g6 {[%clk 0:02:58]} 2. Nf3 {[%clk 0:02:58]}  Bg7 {[%clk 0:02:57]} 3. c4 {[%clk 0:02:57]}  d6 {[%clk 0:02:57]} 4. Nc3 {[%clk 0:02:56]}  Nd7 {[%clk 0:02:44]} 5. g3 {[%clk 0:02:55]}  c6 {[%clk 0:02:43]} 6. Bg2 {[%clk 0:02:54]}  e5 {[%clk 0:02:42]} 7. e4 {[%clk 0:02:51]}  Ngf6 {[%clk 0:02:39]} 8. O-O {[%clk 0:02:50]}  O-O {[%clk 0:02:39]} 9. h3 {[%clk 0:02:49]}  Qe7 {[%clk 0:02:39]} 10. Be3 {[%clk 0:02:47]}  Re8 {[%clk 0:02:37]} 11. Re1 {[%clk 0:02:46]}  b6 {[%clk 0:02:26]} 12. Qc2 {[%clk 0:02:45]}  Bb7 {[%clk 0:02:25]} 13. Rad1 {[%clk 0:02:44]}  h6 {[%clk 0:02:21]} 14. b4 {[%clk 0:02:37]}  exd4 {[%clk 0:02:13]} 15. Nxd4 {[%clk 0:02:36]}  a6 {[%clk 0:02:12]} 16. a4 {[%clk 0:02:26]}  c5 {[%clk 0:02:12]} 17. bxc5 {[%clk 0:02:24]}  bxc5 {[%clk 0:02:08]} 18. Nb3 {[%clk 0:02:20]}  Ne5 {[%clk 0:01:58]} 19. Na5 {[%clk 0:02:14]}  Rab8 {[%clk 0:01:50]} 20. Nxb7 {[%clk 0:02:13]}  Rxb7 {[%clk 0:01:50]} 21. Nd5 {[%clk 0:01:44]}  Nxd5 {[%clk 0:01:47]} 22. Rxd5 {[%clk 0:01:43]}  Rb4 {[%clk 0:01:41]} 23. Qc1 {[%clk 0:01:01]}  Rxc4 {[%clk 0:01:34]} 24. Qd2 {[%clk 0:00:59]}  Kh7 {[%clk 0:01:29]} 25. Rxd6 {[%clk 0:00:58]}  Rxa4 {[%clk 0:01:25]} 26. Bxc5 {[%clk 0:00:37]}  Qc7 {[%clk 0:01:04]} 27. Qd5 {[%clk 0:00:28]}  Ra5 {[%clk 0:00:27]} 28. Rc1 {[%clk 0:00:20]}  Nd3 {[%clk 0:00:23]} 29. Qxd3 {[%clk 0:00:19]}  Rxc5 {[%clk 0:00:23]} 30. Rxc5 {[%clk 0:00:18]}  Qxc5 {[%clk 0:00:23]} 31. Rxa6 {[%clk 0:00:17]}  Bd4 {[%clk 0:00:21]} 32. Ra2 {[%clk 0:00:15]}  Re6 {[%clk 0:00:21]} 33. Rd2 {[%clk 0:00:14]}  Rd6 {[%clk 0:00:20]} 34. Kh2 {[%clk 0:00:13]}  Kg7 {[%clk 0:00:19]} 35. Qc2 {[%clk 0:00:12]}  Qb6 {[%clk 0:00:16]} 36. Re2 {[%clk 0:00:10]}  h5 {[%clk 0:00:16]} 37. h4 {[%clk 0:00:09]}  Rf6 {[%clk 0:00:16]} 38. f4 {[%clk 0:00:09]}  Rc6 {[%clk 0:00:14]} 39. e5 {[%clk 0:00:08]}  Rxc2 {[%clk 0:00:14]} 40. Rxc2 {[%clk 0:00:09]}  Qb1 {[%clk 0:00:14]} 41. Be4 {[%clk 0:00:08]}  Qg1+ {[%clk 0:00:14]} 42. Kh3 {[%clk 0:00:08]}  Bf2 {[%clk 0:00:14]} 43. Re2 {[%clk 0:00:07]}  Qxg3# {[%clk 0:00:14]} 0-1